fUSD/lending_fUSD_20250103
["ID","MTS","AMOUNT","RATE_DAILY","PERIOD"]
[347574461,1735921851176,-591.86,0.00010959,2]
[347574462,1735921851187,-500.0,0.00010959,2]
[347574463,1735921851196,-1048.01,0.00010959,2]
[347574464,1735921851208,-500.0,0.00010959,2]
[347574465,1735921851217,-500.0,0.00010959,2]
[347574466,1735921851226,-500.0,0.00010959,2]
[347574467,1735921851235,-298.76,0.00010959,2]
[347574468,1735921851244,-588.33,0.00010959,2]
[347574469,1735921851254,-500.0,0.00010959,2]
[347574470,1735921851263,-895.81,0.00010959,2]
[347574471,1735921851272,-1466.37,0.00010959,2]
[347574472,1735921851282,-867.5,0.00010959,2]
[347574473,1735921851291,-553.12,0.00010959,2]
[347574474,1735921851301,-500.0,0.00010959,2]
[347574475,1735921851310,-500.0,0.00010959,2]
[347574476,1735921851318,-500.0,0.00010959,2]
[347574477,1735921851329,-938.38,0.00010959,2]
[347574478,1735921851339,-683.76,0.00010959,2]
[347574479,1735921851347,-500.0,0.00010959,2]
[347574480,1735921851356,-500.0,0.00010959,2]
[347574481,1735921851365,-500.0,0.00010959,2]
[347574482,1735921851375,-500.0,0.00010959,2]
[347574483,1735921851384,-193.94560071,0.0001096,2]
[347574484,1735921851394,-500.0,0.0001096,2]
[347574485,1735921851403,-500.0,0.0001096,2]
[347574486,1735921851412,-853.95,0.0001096,2]
[347574487,1735921851421,-500.0,0.0001096,2]
[347574488,1735921851430,-500.0,0.0001096,2]
[347574489,1735921851439,-377.94,0.0001096,2]
[347574490,1735921851449,-1012.88,0.0001096,2]
[347574491,1735921851459,-573.55,0.0001096,2]
[347574492,1735921851468,-500.0,0.0001096,2]
[347574493,1735921851477,-2015.34,0.0001096,2]
[347574494,1735921851486,-500.0,0.0001096,2]
[347574495,1735921851496,-500.0,0.0001096,2]
[347574496,1735921851505,-1719.7,0.0001096,2]
[347574497,1735921851515,-500.0,0.0001096,2]
[347574498,1735921851524,-500.0,0.0001096,2]
[347574499,1735921851532,-500.0,0.0001096,2]
[347574500,1735921851542,-557.05,0.0001096,2]
[347574501,1735921851554,-500.0,0.0001096,2]
[347574502,1735921851563,-500.0,0.0001096,2]
[347574503,1735921851572,-500.0,0.0001096,2]
[347574504,1735921851581,-407.20858304,0.0001096,2]
[347574505,1735921851590,-500.0,0.0001096,2]
[347574506,1735921851599,-500.0,0.0001096,2]
[347574507,1735921851609,-500.0,0.0001096,2]
[347574508,1735921851618,-500.0,0.0001096,2]
[347574509,1735921851628,-1995.29,0.0001096,2]
[347574510,1735921851638,-500.0,0.0001096,2]
[347574511,1735921851647,-500.0,0.0001096,2]
[347574512,1735921851657,-670.73,0.0001096,2]
[347574513,1735921851666,-500.0,0.0001096,2]
[347574514,1735921851676,-842.12,0.0001096,2]
[347574515,1735921851685,-884.35,0.0001096,2]
[347574516,1735921851694,-1909.87,0.00010961,2]
[347574517,1735921851703,-1909.87,0.00010961,2]
[347574518,1735921851712,-500.0,0.00010961,2]
[347574519,1735921851872,-500.0,0.00010961,2]
[347574520,1735921851888,-500.0,0.00010961,2]
[347574521,1735921851898,-2021.04,0.00010961,2]
[347574522,1735921851906,-500.0,0.00010961,2]
[347574523,1735921851915,-500.0,0.00010962,2]
[347574524,1735921851925,-512.5,0.00010962,2]
[347574525,1735921851934,-500.0,0.00010962,2]
[347574526,1735921851943,-232.31308262,0.00010962,2]
[347574527,1735921851952,-788.04,0.00010962,2]
[347574528,1735921851961,-1033.89,0.00010962,2]
[347574529,1735921851970,-500.0,0.00010962,2]
[347574530,1735921851979,-961.38,0.00010963,2]
[347574531,1735921851988,-951.38,0.00010963,2]
[347574532,1735921851997,-1041.75,0.00010963,2]
[347574533,1735921852006,-500.0,0.00010963,2]
[347574534,1735921852015,-500.0,0.00010963,2]
[347574535,1735921852024,-500.0,0.00010963,2]
[347574536,1735921852033,-743.52,0.00010963,2]
[347574537,1735921852042,-500.0,0.00010963,2]
[347574538,1735921852052,-5830.54752845,0.00010968,2]
[347574539,1735921852061,-200.0,0.00010975,2]
[347574540,1735921852071,-400.0,0.00010986,2]
[347574541,1735921852080,-200.0,0.00010989,2]
[347574542,1735921852089,-500.0,0.00010992,2]
[347574543,1735921852099,-994.8549,0.00010999,2]
[347574544,1735921852108,-324.78234455,0.00011,2]
[347574545,1735921852117,-645.0,0.00011,3]
[347574546,1735921852126,-500.0,0.00011112,2]
[347574547,1735921852135,-1127.61,0.00011112,2]
[347574548,1735921852145,-5830.54752845,0.00011116,2]
[347574549,1735921852154,-150.0,0.00011145,2]
[347574550,1735921852164,-150.0,0.00011145,2]
[347574551,1735921852173,-150.0,0.00011145,2]
[347574552,1735921852182,-150.09785196,0.00011145,2]
[347574553,1735921852192,-177.28682157,0.00011145,2]
[347574554,1735921852202,-500.0,0.00011165,2]
[347574555,1735921852211,-500.0,0.00011165,2]
[347574556,1735921852221,-473.56,0.00011165,2]
[347574557,1735921852230,-500.0,0.00011165,2]
[347574558,1735921852240,-1107.45,0.00011165,2]
[347574559,1735921852249,-1400.0,0.000112,4]
[347574560,1735921852259,-500.0,0.00011233,2]
[347574561,1735921852268,-500.0,0.00011233,2]
[347574562,1735921852277,-500.0,0.00011233,2]
[347574563,1735921852286,-500.0,0.00011233,2]
[347574564,1735921852295,-433.61790517,0.00011233,2]
[347574565,1735921852306,-411.48682735,0.00011233,2]
[347574566,1735921852316,-533.693064,0.00011233,2]
[347574567,1735921852325,-959.27,0.00011233,2]
[347574568,1735921852334,-153.754165,0.00011233,2]
[347574569,1735921852343,-500.0,0.00011233,2]
[347574570,1735921852353,-1044.990237,0.00011233,2]
[347574571,1735921852362,-500.0,0.00011233,2]
[347574572,1735921852372,-500.0,0.00011233,2]
[347574573,1735921852381,-643.81,0.00011233,2]
[347574574,1735921852391,-1233.28017707,0.00011233,2]
[347574575,1735921852405,-82.05982293,0.00011233,2]
[347574576,1735921852415,-500.0,0.00011233,2]
[347574577,1735921852427,-500.0,0.00011233,2]
[347574578,1735921852436,-508.09,0.00011233,2]
[347574579,1735921852447,-500.0,0.00011233,2]
[347574580,1735921852457,-541.58,0.00011233,2]
[347574581,1735921852466,-1092.45,0.00011233,2]
[347574582,1735921852476,-288.37356723,0.00011233,2]
[347574583,1735921852485,-500.0,0.00011233,2]
[347574584,1735921852495,-1027.33,0.00011233,2]
[347574585,1735921852504,-500.0,0.00011233,2]
[347574586,1735921852515,-500.0,0.00011233,2]
[347574587,1735921852525,-549.1,0.00011233,2]
[347574588,1735921852536,-738.17,0.00011233,2]
[347574589,1735921852545,-500.0,0.00011233,2]
[347574590,1735921852556,-500.0,0.00011233,2]
[347574591,1735921852566,-500.0,0.00011233,2]
[347574592,1735921852576,-591.86,0.00011233,2]
[347574593,1735921852586,-500.0,0.00011233,2]
[347574594,1735921852596,-1048.01,0.00011233,2]
[347574595,1735921852605,-500.0,0.00011233,2]
[347574596,1735921852615,-500.0,0.00011233,2]
[347574597,1735921852624,-500.0,0.00011233,2]
[347574598,1735921852633,-588.33,0.00011233,2]
[347574599,1735921852643,-500.0,0.00011233,2]
[347574600,1735921852652,-895.81,0.00011233,2]
[347574601,1735921852662,-1466.37,0.00011233,2]
[347574602,1735921852671,-867.5,0.00011233,2]
[347574603,1735921852681,-553.12,0.00011233,2]
[347574604,1735921852690,-488.69182168,0.00011233,2]
[347574605,1735921852699,-500.0,0.00011233,2]
[347574606,1735921852709,-500.0,0.00011233,2]
[347574607,1735921852719,-938.38,0.00011233,2]
[347574608,1735921852728,-683.76,0.00011233,2]
[347574609,1735921852738,-500.0,0.00011233,2]
[347574610,1735921852748,-500.0,0.00011233,2]
[347574611,1735921852758,-500.0,0.00011233,2]
[347574612,1735921852768,-500.0,0.00011233,2]
[347574613,1735921852780,-500.0,0.00011234,2]
[347574614,1735921852790,-500.0,0.00011234,2]
[347574615,1735921852800,-853.95,0.00011234,2]
[347574616,1735921852810,-500.0,0.00011234,2]
[347574617,1735921852822,-500.0,0.00011234,2]
[347574618,1735921852831,-1012.88,0.00011234,2]
[347574619,1735921852840,-573.55,0.00011234,2]
[347574620,1735921852850,-500.0,0.00011234,2]
[347574621,1735921852860,-2015.34,0.00011234,2]
[347574622,1735921852869,-500.0,0.00011234,2]
[347574623,1735921852879,-500.0,0.00011234,2]
[347574624,1735921852889,-1719.7,0.00011234,2]
[347574625,1735921852898,-500.0,0.00011234,2]
[347574626,1735921852907,-500.0,0.00011234,2]
[347574627,1735921852917,-500.0,0.00011234,2]
[347574628,1735921852926,-557.05,0.00011234,2]
[347574629,1735921852935,-500.0,0.00011234,2]
[347574630,1735921852945,-500.0,0.00011234,2]
[347574631,1735921852954,-500.0,0.00011234,2]
[347574632,1735921852963,-500.0,0.00011234,2]
[347574633,1735921852972,-500.0,0.00011234,2]
[347574634,1735921852982,-500.0,0.00011234,2]
[347574635,1735921852991,-500.0,0.00011234,2]
[347574636,1735921853001,-1995.29,0.00011234,2]
[347574637,1735921853011,-627.65997316,0.00011234,2]
[347574638,1735921853020,-500.0,0.00011234,2]
[347574639,1735921853030,-670.73,0.00011234,2]
[347574640,1735921853039,-500.0,0.00011234,2]
[347574641,1735921853049,-842.12,0.00011234,2]
[347574642,1735921853062,-884.35,0.00011234,2]
[347574643,1735921853071,-1000.0,0.00011235,2]
[347574644,1735921853080,-1909.87,0.00011235,2]
[347574645,1735921853090,-1909.87,0.00011235,2]
[347574646,1735921853100,-500.0,0.00011235,2]
[347574647,1735921853110,-500.0,0.00011235,2]
[347574648,1735921853120,-500.0,0.00011235,2]
[347574649,1735921853130,-2021.04,0.00011235,2]
[347574650,1735921853139,-500.0,0.00011235,2]
[347574651,1735921853149,-500.0,0.00011236,2]
[347574652,1735921853158,-512.5,0.00011236,2]
[347574653,1735921853167,-500.0,0.00011236,2]
[347574654,1735921853177,-788.04,0.00011236,2]
[347574655,1735921853187,-1033.89,0.00011236,2]
[347574656,1735921853197,-500.0,0.00011236,2]
[347574657,1735921853206,-961.38,0.00011237,2]
[347574658,1735921853216,-951.38,0.00011237,2]
[347574659,1735921853226,-837.69836881,0.00011237,2]
[347574660,1735921853827,-500.0,9.589e-05,2]
[347574661,1735921853836,-500.0,9.863e-05,2]
[347574662,1735921853849,-204.05163119,0.00011237,2]
[347574663,1735921853858,-500.0,0.00011237,2]
[347574664,1735921853867,-500.0,0.00011237,2]
[347574665,1735921853877,-500.0,0.00011237,2]
[347574666,1735921853886,-743.52,0.00011237,2]
[347574667,1735921853895,-500.0,0.00011237,2]
[347574668,1735921853904,-5830.54752845,0.00011264,2]
[347574669,1735921853913,-2200.0,0.000113,4]
[347574670,1735921853923,-500.0,0.00011386,2]
[347574671,1735921853932,-1127.61,0.00011386,2]
[347574672,1735921853941,-2900.0,0.000114,4]
[347574673,1735921853951,-158.87046434,0.00011408,2]
[347574674,1735921853962,-5723.48056188,0.00011408,2]
[347574675,1735921853972,-5830.54752845,0.00011412,2]
[347574676,1735921853981,-174.98,0.00011433,2]
[347574677,1735921853990,-500.0,0.00011439,2]
[347574678,1735921853999,-500.0,0.00011439,2]
[347574679,1735921854009,-268.19,0.00011439,2]
[347574680,1735921854019,-1107.45,0.00011439,2]
[347574681,1735921854028,-874.88,0.00011452,2]
[347574682,1735921854037,-771.63,0.00011452,2]
[347574683,1735921854046,-771.63,0.00011452,2]
[347574684,1735921854057,-3700.0,0.000115,4]
[347574685,1735921854067,-1000.0,0.000115,2]
[347574686,1735921854076,-2751.0,0.00011507,2]
[347574687,1735921854085,-500.0,0.00011507,2]
[347574688,1735921854099,-500.0,0.00011507,2]
[347574689,1735921854109,-500.0,0.00011507,2]
[347574690,1735921854119,-1000.0,0.00011507,2]
[347574691,1735921854129,-533.693064,0.00011507,2]
[347574692,1735921854139,-959.27,0.00011507,2]
[347574693,1735921854148,-500.0,0.00011507,2]
[347574694,1735921854158,-1044.990237,0.00011507,2]
[347574695,1735921854236,-500.0,0.00011507,2]
[347574696,1735921854246,-500.0,0.00011507,2]
[347574697,1735921854256,-1315.34,0.00011507,2]
[347574698,1735921854265,-295.84073422,0.00011507,2]
[347574699,1735921854274,-500.0,0.00011507,2]
[347574700,1735921854283,-508.09,0.00011507,2]
[347574701,1735921854293,-500.0,0.00011507,2]
[347574702,1735921854305,-541.58,0.00011507,2]
[347574703,1735921854315,-1092.45,0.00011507,2]
[347574704,1735921854324,-500.0,0.00011507,2]
[347574705,1735921854333,-1027.33,0.00011507,2]
[347574706,1735921854342,-500.0,0.00011507,2]
[347574707,1735921854351,-500.0,0.00011507,2]
[347574708,1735921854360,-549.1,0.00011507,2]
[347574709,1735921854369,-738.17,0.00011507,2]
[347574710,1735921854379,-500.0,0.00011507,2]
[347574711,1735921854388,-500.0,0.00011507,2]
[347574712,1735921854398,-500.0,0.00011507,2]
[347574713,1735921854407,-591.86,0.00011507,2]
[347574714,1735921854416,-500.0,0.00011507,2]
[347574715,1735921854426,-1048.01,0.00011507,2]
[347574716,1735921854435,-500.0,0.00011507,2]
[347574717,1735921854444,-500.0,0.00011507,2]
[347574718,1735921854453,-500.0,0.00011507,2]
[347574719,1735921854462,-588.33,0.00011507,2]
[347574720,1735921854472,-500.0,0.00011507,2]
[347574721,1735921854482,-895.81,0.00011507,2]
[347574722,1735921854492,-1466.37,0.00011507,2]
[347574723,1735921854501,-867.5,0.00011507,2]
[347574724,1735921854511,-553.12,0.00011507,2]
[347574725,1735921854520,-500.0,0.00011507,2]
[347574726,1735921854530,-500.0,0.00011507,2]
[347574727,1735921854540,-938.38,0.00011507,2]
[347574728,1735921854549,-683.76,0.00011507,2]
[347574729,1735921854560,-459.28,0.00011507,2]
[347574730,1735921854569,-500.0,0.00011507,2]
[347574731,1735921854578,-500.0,0.00011507,2]
[347574732,1735921854587,-500.0,0.00011507,2]
[347574733,1735921854597,-500.0,0.00011508,2]
[347574734,1735921854607,-500.0,0.00011508,2]
[347574735,1735921854616,-853.95,0.00011508,2]
[347574736,1735921854626,-500.0,0.00011508,2]
[347574737,1735921854635,-500.0,0.00011508,2]
[347574738,1735921854644,-1012.88,0.00011508,2]
[347574739,1735921854653,-573.55,0.00011508,2]
[347574740,1735921854662,-500.0,0.00011508,2]
[347574741,1735921854671,-2015.34,0.00011508,2]
[347574742,1735921854680,-500.0,0.00011508,2]
[347574743,1735921854689,-241.89774571,0.00011508,2]
[347574744,1735921854699,-1719.7,0.00011508,2]
[347574745,1735921854708,-500.0,0.00011508,2]
[347574746,1735921854717,-500.0,0.00011508,2]
[347574747,1735921854726,-500.0,0.00011508,2]
[347574748,1735921854736,-557.05,0.00011508,2]
[347574749,1735921854746,-575.37830095,0.00011508,2]
[347574750,1735921854756,-500.0,0.00011508,2]
[347574751,1735921854768,-500.0,0.00011508,2]
[347574752,1735921854778,-500.0,0.00011508,2]
[347574753,1735921854788,-500.0,0.00011508,2]
[347574754,1735921854798,-500.0,0.00011508,2]
[347574755,1735921854810,-500.0,0.00011508,2]
[347574756,1735921854820,-1995.29,0.00011508,2]
[347574757,1735921854829,-500.0,0.00011508,2]
[347574758,1735921854842,-670.73,0.00011508,2]
[347574759,1735921854852,-500.0,0.00011508,2]
[347574760,1735921854862,-842.12,0.00011508,2]
[347574761,1735921854871,-884.35,0.00011508,2]
[347574762,1735921854881,-1909.87,0.00011509,2]
[347574763,1735921854891,-1909.87,0.00011509,2]
[347574764,1735921854900,-500.0,0.00011509,2]
[347574765,1735921854910,-500.0,0.00011509,2]
[347574766,1735921854920,-500.0,0.00011509,2]
[347574767,1735921854929,-2021.04,0.00011509,2]
[347574768,1735921854939,-500.0,0.00011509,2]
[347574769,1735921854948,-502.52,0.00011509,2]
[347574770,1735921854958,-721.0,0.0001151,2]
[347574771,1735921854967,-500.0,0.0001151,2]
[347574772,1735921854978,-512.5,0.0001151,2]
[347574773,1735921854987,-500.0,0.0001151,2]
[347574774,1735921854997,-788.04,0.0001151,2]
[347574775,1735921855007,-1033.89,0.0001151,2]
[347574776,1735921855016,-961.38,0.00011511,2]
[347574777,1735921855025,-951.38,0.00011511,2]
[347574778,1735921855035,-1041.75,0.00011511,2]
[347574779,1735921855045,-500.0,0.00011511,2]
[347574780,1735921855057,-500.0,0.00011511,2]
[347574781,1735921855066,-500.0,0.00011511,2]
[347574782,1735921855076,-743.52,0.00011511,2]
[347574783,1735921855085,-500.0,0.00011511,2]
[347574784,1735921855095,-770.7,0.00011534,2]
[347574785,1735921855105,-150.0,0.00011558,2]
[347574786,1735921855114,-5830.54752845,0.0001156,2]
[347574787,1735921855124,-700.0,0.000116,4]
[347574788,1735921855133,-158.87046429,0.00011606,2]
[347574789,1735921855142,-500.0,0.00011659,2]
[347574790,1735921855151,-1127.61,0.00011659,2]
[347574791,1735921855161,-700.0,0.000117,4]
[347574792,1735921855171,-3297.9987981,0.00011707,2]
[347574793,1735921855183,-834.58699164,0.00011707,2]
[347574794,1735921855195,-1697.96173871,0.00011707,2]
[347574795,1735921855204,-500.0,0.00011713,2]
[347574796,1735921855213,-500.0,0.00011713,2]
[347574797,1735921855223,-1107.45,0.00011713,2]
[347574798,1735921855233,-185.82489742,0.00011733,2]
[347574799,1735921855242,-177.68,0.0001174,2]
[347574800,1735921855251,-2517.021,0.0001174,2]
[347574801,1735921855260,-307.539,0.0001178,2]
[347574802,1735921855269,-189.85943065,0.00011781,2]
[347574803,1735921855279,-500.0,0.00011781,2]
[347574804,1735921855288,-500.0,0.00011781,2]
[347574805,1735921855298,-533.693064,0.00011781,2]
[347574806,1735921855309,-959.27,0.00011781,2]
[347574807,1735921855319,-500.0,0.00011781,2]
[347574808,1735921855328,-1044.990237,0.00011781,2]
[347574809,1735921855338,-500.0,0.00011781,2]
[347574810,1735921855347,-580.14826382,0.00011781,2]
[347574811,1735921855357,-1315.34,0.00011781,2]
[347574812,1735921855366,-500.0,0.00011781,2]
[347574813,1735921855375,-508.09,0.00011781,2]
[347574814,1735921855385,-541.58,0.00011781,2]
[347574815,1735921855394,-500.0,0.00011781,2]
[347574816,1735921855403,-1092.45,0.00011781,2]
[347574817,1735921855413,-500.0,0.00011781,2]
[347574818,1735921855422,-1027.33,0.00011781,2]
[347574819,1735921855431,-500.0,0.00011781,2]
[347574820,1735921855441,-500.0,0.00011781,2]
[347574821,1735921855450,-549.1,0.00011781,2]
[347574822,1735921855459,-738.17,0.00011781,2]
[347574823,1735921855469,-500.0,0.00011781,2]
[347574824,1735921855478,-500.0,0.00011781,2]
[347574825,1735921855488,-541.61058941,0.00011781,2]
[347574826,1735921855498,-591.86,0.00011781,2]
[347574827,1735921855508,-500.0,0.00011781,2]
[347574828,1735921855518,-1048.01,0.00011781,2]
[347574829,1735921855528,-500.0,0.00011781,2]
[347574830,1735921855537,-500.0,0.00011781,2]
[347574831,1735921855546,-500.0,0.00011781,2]
[347574832,1735921855557,-588.33,0.00011781,2]
[347574833,1735921855567,-500.0,0.00011781,2]
[347574834,1735921855576,-895.81,0.00011781,2]
[347574835,1735921855586,-1466.37,0.00011781,2]
[347574836,1735921855596,-867.5,0.00011781,2]
[347574837,1735921855605,-553.12,0.00011781,2]
[347574838,1735921855615,-500.0,0.00011781,2]
[347574839,1735921855625,-500.0,0.00011781,2]
[347574840,1735921855635,-938.38,0.00011781,2]
[347574841,1735921855644,-683.76,0.00011781,2]
[347574842,1735921855653,-500.0,0.00011781,2]
[347574843,1735921855663,-500.0,0.00011781,2]
[347574844,1735921855672,-500.0,0.00011781,2]
[347574845,1735921855681,-500.0,0.00011782,2]
[347574846,1735921855691,-500.0,0.00011782,2]
[347574847,1735921855702,-853.95,0.00011782,2]
[347574848,1735921855712,-500.0,0.00011782,2]
[347574849,1735921855721,-500.0,0.00011782,2]
[347574850,1735921855731,-1012.88,0.00011782,2]
[347574851,1735921855741,-573.55,0.00011782,2]
[347574852,1735921855750,-500.0,0.00011782,2]
[347574853,1735921855763,-2015.34,0.00011782,2]
[347574854,1735921855772,-500.0,0.00011782,2]
[347574855,1735921855782,-1719.7,0.00011782,2]
[347574856,1735921855791,-500.0,0.00011782,2]
[347574857,1735921855801,-500.0,0.00011782,2]
[347574858,1735921855811,-500.0,0.00011782,2]
[347574859,1735921855821,-557.05,0.00011782,2]
[347574860,1735921855831,-500.0,0.00011782,2]
[347574861,1735921855840,-500.0,0.00011782,2]
[347574862,1735921855850,-500.0,0.00011782,2]
[347574863,1735921855859,-500.0,0.00011782,2]
[347574864,1735921855869,-500.0,0.00011782,2]
[347574865,1735921855878,-500.0,0.00011782,2]
[347574866,1735921855887,-1995.29,0.00011782,2]
[347574867,1735921855897,-500.0,0.00011782,2]
[347574868,1735921855906,-670.73,0.00011782,2]
[347574869,1735921855916,-500.0,0.00011782,2]
[347574870,1735921855925,-842.12,0.00011782,2]
[347574871,1735921855935,-884.35,0.00011782,2]
[347574872,1735921855946,-1909.87,0.00011783,2]
[347574873,1735921855955,-1909.87,0.00011783,2]
[347574874,1735921855965,-500.0,0.00011783,2]
[347574875,1735921855974,-500.0,0.00011783,2]
[347574876,1735921855984,-500.0,0.00011783,2]
[347574877,1735921855994,-2021.04,0.00011783,2]
[347574878,1735921856003,-500.0,0.00011783,2]
[347574879,1735921856012,-500.0,0.00011784,2]
[347574880,1735921856021,-512.5,0.00011784,2]
[347574881,1735921856031,-500.0,0.00011784,2]
[347574882,1735921856040,-788.04,0.00011784,2]
[347574883,1735921856049,-1033.89,0.00011784,2]
[347574884,1735921856061,-961.38,0.00011785,2]
[347574885,1735921856070,-951.38,0.00011785,2]
[347574886,1735921856080,-1041.75,0.00011785,2]
[347574887,1735921856089,-500.0,0.00011785,2]
[347574888,1735921856099,-500.0,0.00011785,2]
[347574889,1735921856108,-500.0,0.00011785,2]
[347574890,1735921856117,-743.52,0.00011785,2]
[347574891,1735921856127,-500.0,0.00011785,2]
[347574892,1735921856136,-700.0,0.000118,4]
[347574893,1735921856146,-158.87046429,0.00011805,2]
[347574894,1735921856155,-570.25,0.00011825,2]
[347574895,1735921856165,-5830.54752845,0.00011855,2]
[347574896,1735921856174,-202.7,0.000119,2]
[347574897,1735921856184,-700.0,0.000119,4]
[347574898,1735921856194,-1000.0,0.0001191,2]
[347574899,1735921856203,-500.0,0.00011915,2]
[347574900,1735921856213,-2000.0,0.00011915,2]
[347574901,1735921856222,-200.0,0.00011915,2]
[347574902,1735921856232,-500.0,0.00011933,2]
[347574903,1735921856242,-1127.61,0.00011933,2]
[347574904,1735921856251,-124028.3608,0.00011956,2]
[347574905,1735921856261,-150.0,0.00011971,2]
[347574906,1735921856270,-500.0,0.00011987,2]
[347574907,1735921856279,-500.0,0.00011987,2]
[347574908,1735921856290,-1107.45,0.00011987,2]
[347574909,1735921856299,-450.0,0.00012,2]
[347574910,1735921856311,-450.0,0.00012,2]
[347574911,1735921856320,-16916.96764707,0.00012,5]
[347574912,1735921856329,-158.87046429,0.00012003,2]
[347574913,1735921856338,-5830.54752845,0.00012003,2]
[347574914,1735921856347,-150.0,0.00012016,2]
[347574915,1735921856356,-500.0,0.00012055,2]
[347574916,1735921856365,-500.0,0.00012055,2]
[347574917,1735921856375,-533.693064,0.00012055,2]
[347574918,1735921856384,-959.27,0.00012055,2]
[347574919,1735921856394,-500.0,0.00012055,2]
[347574920,1735921856403,-1044.990237,0.00012055,2]
[347574921,1735921856412,-500.0,0.00012055,2]
[347574922,1735921856423,-1315.34,0.00012055,2]
[347574923,1735921856432,-500.0,0.00012055,2]
[347574924,1735921856441,-508.09,0.00012055,2]
[347574925,1735921856451,-541.58,0.00012055,2]
[347574926,1735921856461,-500.0,0.00012055,2]
[347574927,1735921856470,-1092.45,0.00012055,2]
[347574928,1735921856480,-500.0,0.00012055,2]
[347574929,1735921856489,-1027.33,0.00012055,2]
[347574930,1735921856499,-500.0,0.00012055,2]
[347574931,1735921856508,-500.0,0.00012055,2]
[347574932,1735921856518,-549.1,0.00012055,2]
[347574933,1735921856527,-738.17,0.00012055,2]
[347574934,1735921856537,-500.0,0.00012055,2]
[347574935,1735921856547,-500.0,0.00012055,2]
[347574936,1735921856558,-591.86,0.00012055,2]
[347574937,1735921856567,-500.0,0.00012055,2]
[347574938,1735921856577,-1048.01,0.00012055,2]
[347574940,1735921856586,-500.0,0.00012055,2]
[347574941,1735921856596,-500.0,0.00012055,2]
[347574942,1735921856605,-500.0,0.00012055,2]
[347574943,1735921856614,-588.33,0.00012055,2]
[347574944,1735921856624,-500.0,0.00012055,2]
[347574945,1735921856634,-895.81,0.00012055,2]
[347574946,1735921856645,-1466.37,0.00012055,2]
[347574947,1735921856654,-867.5,0.00012055,2]
[347574948,1735921856664,-553.12,0.00012055,2]
[347574949,1735921856673,-500.0,0.00012055,2]
[347574950,1735921856682,-500.0,0.00012055,2]
[347574951,1735921856692,-938.38,0.00012055,2]
[347574952,1735921856701,-683.76,0.00012055,2]
[347574953,1735921856711,-500.0,0.00012055,2]
[347574954,1735921856720,-500.0,0.00012055,2]
[347574955,1735921856729,-500.0,0.00012055,2]
[347574956,1735921856739,-500.0,0.00012056,2]
[347574957,1735921856748,-500.0,0.00012056,2]
[347574958,1735921856758,-500.0,0.00012056,2]
[347574959,1735921856770,-500.0,0.00012056,2]
[347574960,1735921856780,-1012.88,0.00012056,2]
[347574961,1735921856789,-573.55,0.00012056,2]